Cogmind - Beta 15 @@@ ROGUE MODE // 2025.05.19 @ 00:45:33 Player: Figgis Result: Self-destructed Performance ------------- Evolutions (3) 1500 Regions Visited (9) 1800 Robots Destroyed (92) 460 Value Destroyed (3043) 3043 Prototype IDs (30) 600 Alien Tech Used (0) 0 Bonus (241) 241 TOTAL SCORE: 7644 Bonus ------- Follower Combat Kills 291 Friendly Fire -50 Cogmind --------- Core Integrity 268/700 Matter 252/300 Energy 290/290 System Corruption 9% Temperature Warm (181) Movement Walking (185) Ox1 Location -7/Factory Parts ------- > --- POWER (1) -------- Improved Deuterium Engine > --- PROPULSION (4) --- Titanium Leg Potential Leg > --- UTILITY (6) ------ High-capacity Storage Unit Improved Terrain Scanner Target Analyzer Improved Propulsion Shielding Makeshift Hacking Suite Makeshift System Shield > --- WEAPON (2) ------- Improved Spread Laser > --- INVENTORY (20) --- Improved Heat Sink Improved Cooling System Improved Sensor Array Improved Signal Interpreter Transmission Jammer Hardened Medium Armor Plating Hardened Medium Armor Plating Relay Coupler [Grunt] (22) Relay Coupler [Behemoth] (9) Makeshift System Restoration Module Drone Bay (2/2) Remote Datajack Peak State ------------ > --- POWER ------------ Improved Deuterium Engine > --- PROPULSION ------- Titanium Leg Potential Leg Potential Leg > --- UTILITY ---------- High-capacity Storage Unit Improved Terrain Scanner Target Analyzer Makeshift Hacking Suite System Shield Makeshift System Shield > --- WEAPON ----------- Improved Spread Laser > --- INVENTORY -------- Improved Heat Sink Improved Cooling System Improved Sensor Array Improved Signal Interpreter Transmission Jammer Improved Propulsion Shielding Hardened Medium Armor Plating Hardened Medium Armor Plating Relay Coupler [Grunt] Relay Coupler [Behemoth] Makeshift System Restoration Module Drone Bay Remote Datajack [Rating: 54] Favorites ----------- Power Reinforced Ion Engine Engine Reinforced Ion Engine Power Core Nuclear Core Propulsion Light Treads Treads Light Treads Leg Carbon-fiber Leg Flight Unit Improved Flight Unit Utility High-capacity Storage Unit Device Improved Heat Sink Storage High-capacity Storage Unit Processor Visual Processing Unit Hackware Makeshift Hacking Suite Protection Medium Armor Plating Weapon Heavy Particle Cannon Energy Gun EM Pulse Gun Energy Cannon Heavy Particle Cannon Ballistic Gun Gauss Rifle Ballistic Cannon Gauss Cannon Special Weapon Mining Laser Special Melee Weapon Datajack Build | -11 -10 -10 -9 -9 -9 -8 -8 -8 -7 ------- Run | Yrd Mat Min Mat Min Exi Min Mat Sto Fac Slots Evolved 6 | . . . 2 . . . 2 . 2 Power . | . . . . . . . . . . Propulsion 2 | . . . 1 . . . . . 1 Utility 4 | . . . 1 . . . 2 . 1 Weapon . | . . . . . . . . . . Parts Attached 78 | 6 5 4 15 . 1 3 12 5 27 Power 9 | 1 . 1 2 . . . . 2 3 Engine 6 | 1 . 1 2 . . . . . 2 Core 3 | . . . . . . . . 2 1 Reactor . | . . . . . . . . . . Propulsion 25 | 2 . 2 2 . . 1 6 1 11 Treads 10 | 2 . 2 2 . . 1 3 . . Leg 14 | . . . . . . . 3 . 11 Wheel . | . . . . . . . . . . Hover . | . . . . . . . . . . Flight 1 | . . . . . . . . 1 . Utility 24 | 1 3 . 4 . 1 1 4 2 8 Device 5 | . 1 . . . . . 2 . 2 Storage 6 | 1 2 . 1 . 1 . . . 1 Processor 2 | . . . 1 . . . . . 1 Hackware 3 | . . . . . . . 2 . 1 Protection 8 | . . . 2 . . 1 . 2 3 Artifact . | . . . . . . . . . . Weapon 20 | 2 2 1 7 . . 1 2 . 5 Energy Gun 6 | 1 1 1 2 . . . . . 1 Energy Cannon 4 | . . . 2 . . . 2 . . Ballistic Gun 7 | 1 . . 2 . . 1 . . 3 Ballistic Cannon 1 | . . . . . . . . . 1 Launcher . | . . . . . . . . . . Special Weapon 1 | . 1 . . . . . . . . Impact Weapon . | . . . . . . . . . . Slashing Weapon . | . . . . . . . . . . Piercing Weapon . | . . . . . . . . . . Special Melee Weapon 1 | . . . 1 . . . . . . Unidentified Prototypes 3 | . . . 1 . . . . 1 1 Parts Lost 38 | . 1 7 3 . . 2 8 . 17 Power 4 | . . 1 1 . . . . . 2 Propulsion 16 | . . 2 1 . . 1 3 . 9 Utility 5 | . . 1 . . . . 2 . 2 Weapon 13 | . 1 3 1 . . 1 3 . 4 Highest Loss Streak 6 | . 1 6 2 . . 1 5 . 6 To Critical Strikes . | . . . . . . . . . . Average Backups 12 | 2 1 3 5 13 14 16 14 19 18 Power 2 | . 1 . . 1 2 2 3 4 2 Propulsion 3 | . . 1 1 2 4 5 5 6 4 Utility 3 | . . . 1 2 2 3 2 6 8 Weapon 2 | 1 . . 1 6 4 3 2 1 1 Tool/Special . | . . . . . . . . . . Unused Backups 20 | . . . . . 1 . 4 1 14 Power 4 | . . . . . . . . 1 3 Propulsion 4 | . . . . . . . 4 . . Utility 9 | . . . . . 1 . . . 8 Weapon 2 | . . . . . . . . . 2 Tool/Special 1 | . . . . . . . . . 1 Average Slot Usage (%) 94 | . 85 86 92 100 100 99 91 96 96 Engine 9 | . 14 13 10 11 11 11 9 3 4 Treads 21 | . 28 26 31 33 33 32 12 . . Leg 8 | . . . . . . . 12 27 29 Device 2 | . . 6 . . . . 8 9 4 Storage 10 | . 14 14 11 11 11 11 9 9 7 Processor 5 | . . . 8 11 11 11 1 . 2 Hackware 7 | . . . . . . . 17 18 22 Protection 6 | . . . 9 11 11 10 1 6 6 Energy Gun 2 | . 13 13 2 . . . . . . Energy Cannon 10 | . . . 1 22 22 19 14 17 3 Ballistic Gun 6 | . 14 6 16 . . 2 3 . 8 Peak Build Rating 54 | 6 7 7 18 18 21 22 35 41 54 Average Rating 23 | 1 6 6 12 18 20 21 30 38 47 On Entrance 16 | . 6 7 5 18 18 21 21 32 41 Naked Turns . | . . . . . . . . . . Heaviest Build 71 | 14 30 30 49 49 69 70 68 71 71 Greatest Support 77 | 40 40 40 60 60 60 60 60 45 77 Greatest Overweight (x) 20 | . . 8 . . 1 1 20 1 2 Average Overweight (x) . | . . . . . . 1 1 1 . Largest Inventory Capacity 20 | 8 15 15 15 15 20 20 20 20 20 Average Capacity 16 | 5 9 15 15 15 16 20 20 20 20 Most Carried 20 | 5 6 5 12 14 15 17 17 20 20 Average Carried 12 | 3 1 3 5 13 14 15 14 19 18 Final Capacity 20 | 8 15 15 15 15 20 20 20 20 20 Final Carried 20 | 2 5 1 12 14 15 17 17 20 12 Class Distribution -------------------- 46% | Scavenger-Mutant 31% | Hacker-Mutant 22% | Mutant Dominant Class ---------------- Mutant | -10/Materials Mutant | -10/Mines Scavenger-Mutant | -9/Materials Scavenger-Mutant | -9/Mines Scavenger-Mutant | -9/Exiles Scavenger-Mutant | -8/Mines Hacker-Mutant | -8/Materials Hacker-Mutant | -8/Storage Hacker-Mutant | -7/Factory Resources | -11 -10 -10 -9 -9 -9 -8 -8 -8 -7 ----------- Run | Yrd Mat Min Mat Min Exi Min Mat Sto Fac Matter Collected 1798 | 185 162 99 300 109 . 54 199 100 590 Remotely . | . . . . . . . . . . Salvage Created 3171 | . 304 122 571 . . 110 551 492 1021 Parts 188 | . 20 10 45 . . 3 30 29 51 Haulers Intercepted 1 | . . . 1 . . . . . . Recyclers Shooed 5 | . . . 1 1 . . . 1 2 Parts Field Recycled . | . . . . . . . . . . Retrieved Matter . | . . . . . . . . . . Parts Self-Destructed . | . . . . . . . . . . Prevented . | . . . . . . . . . . Kills | -11 -10 -10 -9 -9 -9 -8 -8 -8 -7 ------- Run | Yrd Mat Min Mat Min Exi Min Mat Sto Fac Combat Hostiles Destroyed 67 | . 6 5 15 . . 2 14 8 17 Guns 39 | . 4 4 15 . . 1 2 . 13 Cannons 23 | . . 1 . . . 1 11 7 3 AOE 4 | . 2 . . . . . 1 . 1 Classes Destroyed 15 | . 7 1 3 . . . 1 . 3 Worker 3 | . 1 . . . . . . . 2 Builder 6 | . 1 . . . . . 1 1 3 Tunneler 3 | . 1 . . . . . . . 2 Hauler 1 | . . . 1 . . . . . . Recycler 1 | . . . . . . . . . 1 Operator 4 | . 1 . 1 . . . . . 2 Watcher 8 | . 3 . 2 . . . 1 2 . Swarmer 14 | . 2 2 6 . . . 4 . . Grunt 32 | . 4 2 6 . . 1 8 4 7 Brawler 2 | . . . 1 . . 1 . . . Duelist 1 | . . . . . . . 1 . . Sentry 12 | . . . 2 . . . 1 4 5 Hunter 2 | . . . . . . . . . 2 Programmer 3 | . . . . . . . . . 3 Assembled 1 | . . 1 . . . . . . . Best Kill Streak 12 | . 5 2 4 . . 1 12 4 4 Combat Bots Only 10 | . 2 2 4 . . 1 10 4 3 Max Kills in Single Turn 4 | . 4 1 1 . . 1 2 1 4 Gunslinging . | . . . . . . . . . . Exploded 2 | . 2 . . . . . 1 . 1 Melee . | . . . . . . . . . . Uniques/NPCs Destroyed . | . . . . . . . . . . Combat | -11 -10 -10 -9 -9 -9 -8 -8 -8 -7 -------- Run | Yrd Mat Min Mat Min Exi Min Mat Sto Fac Hostile Shots Fired 697 | . 23 46 82 . . 28 123 23 372 Missed 175 | . 9 10 22 . . 6 33 5 90 Hits 522 | . 14 36 60 . . 22 90 18 282 Melee 2 | . . . 1 . . . 1 . . Projectile 520 | . 14 36 59 . . 22 89 18 282 Critical Strikes 19 | . 2 . 1 . . 2 8 . 6 Part Disruptions 1 | . . . . . . . . . 1 Damage Taken 6431 | . 371 429 703 . . 319 1257 299 3053 Core 793 | . 71 60 51 . . . 147 32 432 Absorbed by Shields 41 | . . . . . . . 41 . . Redirected to Shielding 51 | . . . 11 . . . . . 40 Regen/Repaired (Parts) 38 | . . . . . . . 38 . . Core Remaining (%) 75 | 100 . 47 . . . 87 . 67 . Volleys Fired 264 | . 25 26 58 2 . 6 36 25 86 Largest 2 | . 2 2 2 2 . 2 2 2 2 Hottest 150 | . 100 100 85 150 . 150 150 150 150 Shots Fired 473 | . 49 37 102 4 . 11 69 47 154 Gun 333 | . 48 36 102 . . 1 26 . 120 Cannon 138 | . . . . 4 . 10 43 47 34 Launcher . | . . . . . . . . . . Special 2 | . 1 1 . . . . . . . Kinetic 277 | . 24 11 88 . . 1 26 . 127 Thermal 145 | . 1 12 1 4 . 10 43 47 27 Explosive . | . . . . . . . . . . Electromagnetic 51 | . 24 14 13 . . . . . . Robot Hit Streak 18 | . 10 5 11 1 . 6 11 11 18 Robot Miss Streak 8 | . 6 3 6 1 . 2 8 3 5 Penetration Max 1 | . . . . . . . . . 1 Secondary Targets 3 | . . 1 2 . . . . . . Max Gunslinging Chain 1 | . . 1 1 . . . . . . Shots Hit Robots 284 | . 25 20 61 2 . 8 36 28 104 Core Hits 141 | . 16 9 25 . . 3 19 14 55 Critical Kills 2 | . . . . . . . . 2 . Critical Parts Destroyed 1 | . . . . . . . . . 1 Critical Strikes 10 | . 1 1 1 . . . . 2 5 Meltdown 2 | . . . . . . . . 2 . Destroy 2 | . . . . . . . . . 2 Blast 3 | . . . . . . . . . 3 Corrupt 3 | . 1 1 1 . . . . . . Melee Attacks . | . . . . . . . . . . Impact . | . . . . . . . . . . Slashing . | . . . . . . . . . . Piercing . | . . . . . . . . . . Sneak Attacks . | . . . . . . . . . . Combat Hostiles . | . . . . . . . . . . Follow-up Attacks . | . . . . . . . . . . Damage Inflicted 7504 | . 840 266 967 75 . 218 1304 750 3084 Guns 3723 | . 366 242 967 . . 18 134 . 1996 Cannons 2409 | . . . . 75 . 200 804 750 580 Explosions 1322 | . 474 . . . . . 366 . 482 Melee . | . . . . . . . . . . Ramming 26 | . . . . . . . . . 26 Kinetic 3211 | . 166 92 820 . . 18 134 . 1981 Thermal 3500 | . 137 79 12 75 . 200 1170 750 1077 Explosive 337 | . 337 . . . . . . . . Electromagnetic 430 | . 200 95 135 . . . . . . Impact . | . . . . . . . . . . Slashing . | . . . . . . . . . . Piercing . | . . . . . . . . . . Highest Corruption 9 | . . . . . . . . . 9 Average Corruption 2 | . . . . . . . . . 2 Corruption Purged 4 | . . . . . . . . . 4 Corruption Blocked . | . . . . . . . . . . Effects 12 | . . . . . . . . . 12 Message Errors 2 | . . . . . . . . . 2 Matter Fused 2 | . . . . . . . . . 2 Heat Flow Errors 2 | . . . . . . . . . 2 Energy Discharges 1 | . . . . . . . . . 1 Parts Rejected 2 | . . . . . . . . . 2 Data Loss (minor) 1 | . . . . . . . . . 1 Weapon Failures 2 | . . . . . . . . . 2 Overload Shots . | . . . . . . . . . . Overflow Damage 473 | . 91 . . 10 . . 162 12 198 Projectiles 63 | . . . . 10 . . 18 12 23 Explosions 410 | . 91 . . . . . 144 . 175 Melee . | . . . . . . . . . . Knockbacks 3 | . . . . . . . . . 3 Impact . | . . . . . . . . . . Kinetic 3 | . . . . . . . . . 3 Secondary . | . . . . . . . . . . Self-Inflicted Damage 267 | . 189 . . . . . 78 . . Shots 4 | . 3 . . . . . 1 . . Rammed . | . . . . . . . . . . Targets Rammed 2 | . . . . . . . . . 2 Kicked 2 | . . . . . . . . . 2 Crushed . | . . . . . . . . . . Highest Temperature 391 | . 102 91 24 204 . 391 363 279 181 Average Temperature 105 | . 34 33 9 102 . 223 169 97 45 Received Heat Transfer 2238 | . 129 168 252 . . 189 636 144 720 Effects 7 | . . . . . . 2 5 . . Shutdowns 2 | . . . . . . 1 1 . . Energy Bleed 1 | . . . . . . . 1 . . Interference 4 | . . . . . . 1 3 . . Siege Activations . | . . . . . . . . . . Martial Activations . | . . . . . . . . . . Shielding Activations . | . . . . . . . . . . Robots Disrupted . | . . . . . . . . . . Combat Hostiles . | . . . . . . . . . . Robots Corrupted . | . . . . . . . . . . Combat Hostiles . | . . . . . . . . . . Parts Fried . | . . . . . . . . . . Impact Corruptions . | . . . . . . . . . . Robots Melted 2 | . . . . . . . . 2 . Combat Hostiles 1 | . . . . . . . . 1 . Parts Melted 10 | . . . . . . 2 4 3 1 Heat Transferred 4229 | . 150 175 25 111 . 296 1434 1110 928 Parts Sabotaged . | . . . . . . . . . . Parts Stolen . | . . . . . . . . . . Parts Stripped . | . . . . . . . . . . Power Chain Reactions 2 | . 2 . . . . . . . . Alert | -11 -10 -10 -9 -9 -9 -8 -8 -8 -7 ------- Run | Yrd Mat Min Mat Min Exi Min Mat Sto Fac Maximum Alert Level 1 | . . . . . . . 1 1 1 Low Security (%) 88 | 100 100 100 100 100 . 100 84 84 58 Level 1 11 | . . . . . . . 15 15 41 Level 2 . | . . . . . . . . . . Level 3 . | . . . . . . . . . . Level 4 . | . . . . . . . . . . Level 5 . | . . . . . . . . . . High Security . | . . . . . . . . . . Max Security . | . . . . . . . . . . Peak Influence 277 | . 188 40 184 35 . 104 225 222 277 Initial 74 | . . . . 35 . . . 25 74 Average 74 | . 49 7 96 2 . 20 133 109 130 Influence Increases 2848 | . 315 90 464 23 . 267 439 463 787 Destroy 0b10 Robot/C 1540 | . 120 80 300 20 . 160 280 240 340 Destroy 0b10 Robot/NC 140 | . 35 . 20 . . . 10 25 50 Destroy Leader 390 | . 26 10 66 . . 30 52 86 120 Allied During Kill 52 | . . . . 2 . 15 . 35 . Successful Hack 94 | . 31 . . . . . 32 3 28 Disable Machine 330 | . 30 . 15 . . . 15 60 210 Destroy Structure 137 | . 43 . 3 1 . 2 35 14 39 Lose Combat Pursuer 165 | . 30 . 60 . . 60 15 . . Influence Decreases 2725 | . 315 90 372 115 . 267 379 357 830 Entered New Map 184 | . . . . 57 . . . 35 92 Time Decay 1998 | . 305 70 352 58 . 204 299 282 428 Lost Part 310 | . 10 20 20 . . 20 80 . 160 Lost Ally 83 | . . . . . . 43 . 40 . Purge Threat 150 | . . . . . . . . . 150 Squads Dispatched 11 | . . . 2 . . . 1 3 5 Investigation 2 | . . . . . . . 1 . 1 Extermination 2 | . . . . . . . . . 2 Reinforcement 5 | . . . 2 . . . . 1 2 Assault 2 | . . . . . . . . 2 . Garrison . | . . . . . . . . . . Intercept . | . . . . . . . . . . Searches Triggered . | . . . . . . . . . . Construction Impeded . | . . . . . . . . . . Haulers Reinforced 1 | . . . . . . . . . 1 Active Scanning Responses . | . . . . . . . . . . Cargo Convoy Interrupts . | . . . . . . . . . . Stealth | -11 -10 -10 -9 -9 -9 -8 -8 -8 -7 --------- Run | Yrd Mat Min Mat Min Exi Min Mat Sto Fac Distress Signals 5 | . . 1 1 . . . 1 2 . Communications Jammed . | . . . . . . . . . . Distress Signals . | . . . . . . . . . . Times Spotted 116 | . 16 7 25 2 . 7 20 17 22 Peak Tracking Total 10 | . 4 3 5 2 . 3 10 5 4 Tactical Retreats 9 | . 1 1 3 . . 3 1 . . Traps | -11 -10 -10 -9 -9 -9 -8 -8 -8 -7 ------- Run | Yrd Mat Min Mat Min Exi Min Mat Sto Fac Traps Triggered 5 | . . . . . . . 1 3 1 Indirectly . | . . . . . . . . . . Trap Hack Attempts . | . . . . . . . . . . Triggered . | . . . . . . . . . . Disarmed 3 | . . . . . . . . . 3 Reprogrammed . | . . . . . . . . . . Reused . | . . . . . . . . . . Traps Extracted . | . . . . . . . . . . Installed . | . . . . . . . . . . Triggered . | . . . . . . . . . . Machines | -11 -10 -10 -9 -9 -9 -8 -8 -8 -7 ---------- Run | Yrd Mat Min Mat Min Exi Min Mat Sto Fac Machines Disabled 22 | . 2 . 1 . . . 1 4 14 Max in Single Turn 11 | . 1 . 1 . . . 1 1 11 Garrison Access 2 | . . . . . . . 1 . 1 Machines Repaired . | . . . . . . . . . . Machines Dismantled . | . . . . . . . . . . Machines Sabotaged . | . . . . . . . . . . Overloaded Fab Kills . | . . . . . . . . . . Hacking | -11 -10 -10 -9 -9 -9 -8 -8 -8 -7 --------- Run | Yrd Mat Min Mat Min Exi Min Mat Sto Fac Machines Accessed 30 | . 7 . 1 . 2 . 5 6 9 Terminals 21 | . 7 . 1 . . . 3 5 5 Fabricators 1 | . . . . . . . . . 1 Repair Stations 1 | . . . . . . . 1 . . Recycling Units 2 | . . . . . . . . 1 1 Scanalyzers . | . . . . . . . . . . Garrison Access 3 | . . . . . . . 1 . 2 Total Hacks 99 | . 18 . 3 . 4 . 27 13 34 Successful 45 | . 8 . . . 4 . 14 4 15 Failed 54 | . 10 . 3 . . . 13 9 19 Catastrophic 12 | . 2 . 1 . . . 2 4 3 Database Lockouts . | . . . . . . . . . . Manual 50 | . 13 . 3 . 1 . 18 7 8 Terminals 76 | . 18 . 3 . . . 20 11 24 Fabricators 2 | . . . . . . . . . 2 Repair Stations 3 | . . . . . . . 3 . . Recycling Units 6 | . . . . . . . . 2 4 Scanalyzers . | . . . . . . . . . . Garrison Access 8 | . . . . . . . 4 . 4 Terminal Hacks 35 | . 7 . . . 4 . 11 3 10 Record 3 | . . . . . 3 . . . . Robot Analysis 3 | . 1 . . . . . 2 . . Prototype ID Bank 2 | . . . . . . . 1 . 1 Open Door 2 | . . . . . . . . 2 . Branch Access Points 3 | . 1 . . . . . 1 . 1 Emergency Access Points 1 | . . . . . . . . . 1 Terminal Index 2 | . 1 . . . . . 1 . . Fabricator Index 1 | . . . . . . . 1 . . Scanalyzer Index 1 | . . . . . . . 1 . . Alert Level 1 | . . . . . . . . . 1 Unreport Threat 1 | . . . . . . . . . 1 Locate Traps 6 | . 3 . . . . . 1 . 2 Disarm Traps 2 | . . . . . . . . . 2 Transport Status 1 | . . . . . . . 1 . . Hauler Manifests 1 | . 1 . . . . . . . . Registered Components 2 | . . . . . . . 1 . 1 Zone Layout 2 | . . . . . . . 1 1 . Proto ID Catalog 1 | . . . . . 1 . . . . Fabricator Hacks 1 | . . . . . . . . . 1 Network Status 1 | . . . . . . . . . 1 Repair Station Hacks 2 | . . . . . . . 2 . . Scan Component 1 | . . . . . . . 1 . . Repair 1 | . . . . . . . 1 . . Recycling Unit Hacks 4 | . . . . . . . . 1 3 Process 1 | . . . . . . . . . 1 Report Inventory 2 | . . . . . . . . 1 1 Retrieve Matter 1 | . . . . . . . . . 1 Scanalyzer . | . . . . . . . . . . Garrison Access Hacks 2 | . . . . . . . 1 . 1 Seal Access 2 | . . . . . . . 1 . 1 Unauthorized Hacks 1 | . 1 . . . . . . . . Terminals 1 | . 1 . . . . . . . . Operators 1 | . 1 . . . . . . . . Fabricators . | . . . . . . . . . . Repair Stations . | . . . . . . . . . . Recycling Units . | . . . . . . . . . . Scanalyzers . | . . . . . . . . . . Garrison Access . | . . . . . . . . . . Data Cores Recovered 3 | . 1 . . . . . . . 2 Used . | . . . . . . . . . . Hacking Detections 21 | . 7 . 1 . . . 3 3 7 Full Trace Events 1 | . . . . . . . . . 1 Feedback Events . | . . . . . . . . . . Feedback Blocked . | . . . . . . . . . . Robot Schematics Acquired . | . . . . . . . . . . Robots Built . | . . . . . . . . . . Authchips . | . . . . . . . . . . Time . | . . . . . . . . . . Total Robot Build Rating . | . . . . . . . . . . Part Schematics Acquired . | . . . . . . . . . . Parts Built . | . . . . . . . . . . Authchips . | . . . . . . . . . . Time . | . . . . . . . . . . Total Part Build Rating . | . . . . . . . . . . Parts Repaired 1 | . . . . . . . 1 . . Time 19 | . . . . . . . 19 . . Parts Recycled . | . . . . . . . . . . Recycled Matter 364 | . . . . . . . . . 364 Retrieved Matter 372 | . . . . . . . . . 372 Retrieved Components . | . . . . . . . . . . Parts Scanalyzed . | . . . . . . . . . . Part Schematics Acquired . | . . . . . . . . . . Parts Damaged . | . . . . . . . . . . Bothacking | -11 -10 -10 -9 -9 -9 -8 -8 -8 -7 ------------ Run | Yrd Mat Min Mat Min Exi Min Mat Sto Fac Used RIF Installer . | . . . . . . . . . . Robots Hacked . | . . . . . . . . . . Non-combat . | . . . . . . . . . . Combat . | . . . . . . . . . . Robot Hacks Applied . | . . . . . . . . . . Relay Couplers Released 3 | . . . . . . . . . 3 Programmers 3 | . . . . . . . . . 3 Fabnet Peak Effective % . | . . . . . . . . . . Robots Rewired . | . . . . . . . . . . Allies Hacked . | . . . . . . . . . . Hacks Repelled . | . . . . . . . . . . Allies | -11 -10 -10 -9 -9 -9 -8 -8 -8 -7 -------- Run | Yrd Mat Min Mat Min Exi Min Mat Sto Fac Total Allies 7 | . . . . 5 . . . 2 . Largest Group 5 | . . . . 5 5 3 . 2 . Highest-Rated Group 83 | . . . . 83 83 40 . 62 . Highest-Rated Ally 31 | . . . . 31 31 16 . 31 . Total Orders . | . . . . . . . . . . Ally Attacks 95 | . . . . 1 . 43 . 51 . Total Damage 1082 | . . . . 22 . 389 . 671 . Kills 13 | . . . . 1 . 6 . 6 . Allies Corrupted . | . . . . . . . . . . Allies Melted . | . . . . . . . . . . Intel | -11 -10 -10 -9 -9 -9 -8 -8 -8 -7 ------- Run | Yrd Mat Min Mat Min Exi Min Mat Sto Fac Active Infowar (turns) 3849 | . 87 157 706 777 729 1102 118 . 173 Optics 3432 | . . . 706 777 729 1102 118 . . Sensors 244 | . 87 157 . . . . . . . Terrain 173 | . . . . . . . . . 173 Robot Analysis Total 2 | . 1 . . . . . 1 . . Derelict Logs Recovered 2 | . . 1 . 1 . . . . . Drone Launches . | . . . . . . . . . . Drone Recoveries . | . . . . . . . . . . Exploration | -11 -10 -10 -9 -9 -9 -8 -8 -8 -7 ------------- Run | Yrd Mat Min Mat Min Exi Min Mat Sto Fac Turns Passed 7992 | 32 1216 335 935 777 729 1102 752 729 1385 Spaces Moved 3810 | 36 672 162 456 456 415 446 274 308 585 Core 37 | 35 . 1 . . . . 1 . . Treads 2711 | 1 672 161 456 456 415 446 104 . . Legs 1062 | . . . . . . . 169 308 585 Wheels . | . . . . . . . . . . Hover . | . . . . . . . . . . Flight . | . . . . . . . . . . Fastest Speed 50 | 50 160 160 160 160 160 240 190 190 103 Average Speed 179 | 53 160 161 160 160 174 240 215 190 178 Slowest Speed 1050 | 160 160 450 160 160 240 240 1050 190 260 Overloaded Moves . | . . . . . . . . . . Propulsion Burnouts . | . . . . . . . . . . Robots Hopped . | . . . . . . . . . . Potential Cave-ins . | . . . . . . . . . . Cave-ins Triggered . | . . . . . . . . . . Exploration Rate (%) 55 | 4 83 45 52 99 92 81 22 54 19 Regions Visited 9 Branch Regions 5 Pre-discovered Areas 2 | . . . . 1 1 . . . . Known Exits Taken 3 | . 1 . 1 . . . 1 . . Unknown Exits Taken 6 | 1 . 1 . 1 1 1 . 1 . Scrap Searched 3 | . . . . 1 . 2 . . . Spaces Dug 2 | . 1 . . . . . 1 . . Terrain Destroyed 141 | . 60 . . 1 . 2 31 11 36 Melee . | . . . . . . . . . . Projectile 27 | . 1 . . 1 . 2 8 11 4 AOE 114 | . 59 . . . . . 23 . 32 Terrain Rammed . | . . . . . . . . . . Walls Destroyed . | . . . . . . . . . . Machines Disabled . | . . . . . . . . . . Actions | -11 -10 -10 -9 -9 -9 -8 -8 -8 -7 --------- Run | Yrd Mat Min Mat Min Exi Min Mat Sto Fac Total 4513 | 49 762 196 557 500 425 467 377 407 773 Wait 213 | . 51 3 6 41 . 5 29 42 36 Move 3801 | 35 671 161 455 455 414 445 273 307 585 Hop . | . . . . . . . . . . Pick Up 96 | 8 7 1 20 2 5 5 18 12 18 Fast Attach 4 | . . . . . . . . . 4 Attach 61 | 6 4 5 8 . . 3 12 5 18 Detach . | . . . . . . . . . . Swap 27 | . 2 . 8 . 1 2 1 5 8 Drop 40 | . 2 . 2 . 5 1 8 6 16 Fire 264 | . 25 26 58 2 . 6 36 25 86 Melee . | . . . . . . . . . . Ram . | . . . . . . . . . . Kick 2 | . . . . . . . . . 2 Crush . | . . . . . . . . . . Escape Stasis 5 | . . . . . . . . 5 . Rewire . | . . . . . . . . . . Trap . | . . . . . . . . . . Miscellaneous . | . . . . . . . . . . Route ------- -11/Scrapyard -10/Materials (discovered 3 exits: *Mat x2 / *Min) -10/Mines (discovered 2 exits: *Mat x2) -9/Materials (discovered 3 exits: *Mat / *Min x2) -9/Mines (discovered 3 exits: *Mat x2 / *Exi) -9/Exiles -8/Mines -8/Materials (discovered 2 exits: *Sto x2) -8/Storage -7/Factory (discovered 2 exits: Low x2) History --------- Turn | Location | Event 10 | -11/Scrapyard | Discovered new exit (range 14) 33 | -11/Scrapyard | Entered Materials 315 | -10/Materials | Build established: Mutant 669 | -10/Materials | Discovered new exit (range 10) 894 | -10/Materials | Discovered new exit (range 16) 1192 | -10/Materials | Identified exit to Mines 1249 | -10/Materials | Entered Mines 1445 | -10/Mines | Lost 6 parts (1p2n1u2w) 1497 | -10/Mines | Assembled infested the area 1548 | -10/Mines | Core integrity fell below 50% 1563 | -10/Mines | Discovered new exit (range 14) 1579 | -10/Mines | Discovered new exit (range 14) 1584 | -10/Mines | Entered Materials 1584 | -9/Materials | Evolved 2 slots: Propulsion x1, Utility x1 1585 | -9/Materials | Identified exit to Mines 2101 | -9/Materials | Build established: Scavenger-Mutant 2165 | -9/Materials | Discovered new exit (range 18) 2519 | -9/Materials | Entered Mines 2547 | -9/Mines | Discovered new exit (range 5) 2564 | -9/Mines | Learned location of Storage (-8) 2747 | -9/Mines | Joined a pair of Derelicts in attacking an 0b10 outpost 2875 | -9/Mines | Assisted by bots powering up and referring to "LRC-V3" 2987 | -9/Mines | Discovered new exit (range 15) 3247 | -9/Mines | Deemed a non-threat by the Exiles lab entrance 3247 | -9/Mines | Discovered new exit (range 5) 3296 | -9/Mines | Entered Exiles 3296 | -9/Exiles | Found Exiles lab destroyed 3296 | -9/Exiles | Accompanied by 5 allies 3326 | -9/Exiles | Led the pair of lost Derelicts to a safe place 3460 | -9/Exiles | Opened EX-Vault 3466 | -9/Exiles | Found Prototype Leg 3469 | -9/Exiles | Found Prototype Leg 3470 | -9/Exiles | Identified Potential Leg (x2) 3565 | -9/Exiles | Learned location of Zion (-7) 4003 | -9/Exiles | Discovered new exit (range 10) 4025 | -9/Exiles | Entered Mines 4025 | -8/Mines | Accompanied by 3 allies 5076 | -8/Mines | Discovered new exit (range 11) 5127 | -8/Mines | Entered Materials 5127 | -8/Materials | Evolved 2 slots: Utility x2 5137 | -8/Materials | Discovered new exit (range 13) 5169 | -8/Materials | Identified exit to Storage 5306 | -8/Materials | Lost 5 parts (3n1u1w) 5312 | -8/Materials | Destroyed 10 combat bots 5700 | -8/Materials | Repaired Imp. Heat Sink 5779 | -8/Materials | Build established: Hacker-Mutant 5879 | -8/Materials | Entered Storage 5972 | -8/Storage | Met a pair of Derelict thieves 6431 | -8/Storage | Discovered new exit (range 16) 6608 | -8/Storage | Entered Factory 6608 | -7/Factory | Evolved 2 slots: Propulsion x1, Utility x1 7685 | -7/Factory | Lost 6 parts (1p2n1u2w) 7853 | -7/Factory | Identified exit to Lower Caves 7947 | -7/Factory | Lost 4 parts (1p1n2w) 7947 | -7/Factory | Core integrity fell below 50% 7993 | -7/Factory | Self-destructed Last Messages --------------- 07959_ K-01 Serf cleans the Fabricator. 07961_ Acquired Relay Coupler [Grunt]. 07962_ K-01 Serf cleans the Fabricator. 07964_ Acquired Relay Coupler [Behemoth]. 07970_ K-01 Serf cleans the Fabricator. 07973_ Titanium Leg destroyed. 07975_ R-06 Scavenger collects Relay Coupler [Swarmer]. 07975_ Y-54 Guardian destroyed. 07978_ K-01 Serf collects debris. 07979_ Discarded System Shield. 07980_ R-06 Scavenger collects Imp. Light Armor Plating. 07983_ R-06 Scavenger collects Lgt. Treads. 07983_ K-01 Serf cleans the Fabricator. 07984_ K-01 Serf collects debris. 07987_ Critical hit (Burn: +37). 07987_ K-01 Serf collects debris. 07991_ G-47 Trooper destroyed. 07991_ R-06 Scavenger collects Lgt. Nuclear Core. 07991_ K-01 Serf collects debris. 07993_ System corrupted: Potential Leg rejected. Map ----- +----------------------------------------------------+ | ?????????????????????????# #???#############???? # | | ?????????????????????????# #?????????????????????? | | ????????????????????????##+###########???????????? | | ????????????????????????# #???????????? | | ????????????????????????# #? ???????? | | ????????????????????????# """" """" # ???????? | | ????????#################["""" """"??## #??????? | | ????????# # """" """" ## #??????? | | ????????# # """" """" ##^^^#??????? | | ????????# +!"""" """" ##^^^#??????" | | ????????# # """" """" ## #??????? | | ????????# # """" """" ## ######## | | ????????# # ## # | | ????????# # ## # """ "" | | ????????# # ## # """ "" | | ????????# ################ # """ "" | | ????##### # | | ????# # ! "" | | ????# %%% %%" !!! + "" | | ????# " % %" !!! # "" | | ????# ####### """ % % % " !! # "" | | ?????????###??# % # "F "" | | ?????????# !?# g # "" "" | | ?????????# ?# r%= # "" "" | | ?????????#! # [ k%% # | | ?????????# # @###### #+###### | | ?????????#% + [= !!%% ###### #?? ?? | | ?????????# # = ! #+#### #?? ?? | | ######% % #% # #?? "? | | % " F" # # #?? "? | | ##### """" # # ### "? | | ?????????????# # *# # "" | | ?????????????# k / # + "" | | ?????????????####+### # "" # """ # "" | | ??????????????# ## ## Y" ##/#### "T" ## | | ??????????????# ## ## "" # ## ## "" | | ??????????????# """ ## ## #]!! ## ## "" | | ??????????????# """ # ] ##+###]! ## ## ! | | ??????????????# """ + ?? ?##!! / + | | ??????????????# # #? ??# % ### ## | | ??????????????# """ ###### ??# "" "?######+#### | | ??????????????# """ #?#??? ??# "T ##??# # | | ??????????????# ?"??#????? ??# "" #??##"" """ # | | ??????????????# ?????????? ### #???#"" """ #### | | ??????????????# ?????#???????## ###???#"" """ #??? | | ??????????????? ??????????????##??????#G #??? | | ?????????????????????##?#?????????#???#"" """ #??? | | ??????????????????????????????????????#"" """ #?#? | | ??????????????????????????????????????#"" """ #??? | | ????????????????????????????????? ????# #??? | +----------------------------------------------------+ Best States ------------- Heat Dissipation 48 Energy Generation 16 Energy Capacity 290 Matter Stores 300 Matter Capacity 300 Sight Range 18 Robot Scan Range 14 Terrain Scan Range 16 Terrain Scan Density 10 Armor Coverage 225 Core Shielding 20 Propulsion Shielding 66 Evasion (%) 55 Target Analysis 5 Recoil Reduction 3 Offensive Hacking 11 Defensive Hacking 21 Item Schematics ----------------- None Robot Schematics ------------------ None Fabricated ------------ Nothing Repaired ---------- Imp. Heat Sink | 5% | -8/Materials Alien Tech Used ----------------- None Achievements -------------- None Challenges ------------ None Game ------ Seed JunkMicroWings Manual? 0 Play Time 00:53:42 Cumulative 130.6 hours Start 2025.05.18 @ 23:49:32 End 2025.05.19 @ 00:45:33 Sessions 1 Manual Loads 0 Difficulty Rogue Special Mode None Game No. 198 Rogue 195 Adventurer 3 Explorer 0 Win Type - Total 0 Types 0/0/0/0/0/0/0/0/0/0 Lore% 32 Gallery% 52 Achievement% 42 Wizard Run 0 Options --------- Layout 0 ASCII 0 Keyboard 0 Movement Mouse Keybinds 0 Fullscreen 2 Font 18/SmallcapsGlow Map View 76x50 Zoom Use 0% Tactical HUD 1 Map Filters NONE Filters NONE Steam 1 RUN: d07ccb68-494e-45b4-b420-25344849be28